bitfinex/quotes_SOLUSD_20260124
["timestamp","ask_amount","ask_price","bid_price","bid_amount"]
[1769212803144,0.51968801,127.49,127.44,2.16033992]
[1769212803828,0.54625038,127.5,127.44,2.16033992]
[1769212804139,0.54625038,127.5,127.44,1.66033992]
[1769212808519,0.54625038,127.5,127.42,2.3462516]
[1769212809048,1.05937765,127.49,127.43,2.3462516]
[1769212810724,1.05937765,127.49,127.44,2.3462516]
[1769212813540,104.37236734,127.5,127.44,2.3462516]
[1769212813848,103.3,127.5,127.45,2.3462516]
[1769212815150,103.3,127.5,127.45,7.84582951]
[1769212815351,103.3,127.5,127.46,2.3462516]
[1769212817041,104.38477044,127.5,127.46,2.3462516]
[1769212817459,103.3,127.5,127.46,2.3462516]
[1769212823557,103.23724506,127.5,127.47,2.3462516]
[1769212823944,104.34238844,127.5,127.47,2.3462516]
[1769212828163,103.23724506,127.5,127.47,2.3462516]
[1769212830373,1.11606637,127.51,127.47,2.3462516]
[1769212831759,1.11606637,127.51,127.45,10.19212585]
[1769212831952,1.12649609,127.5,127.45,2.3462516]
[1769212834944,1.13645483,127.49,127.44,2.31927688]
[1769212861099,1.19108753,127.48,127.44,2.31927688]
[1769212864486,1.19812942,127.53,127.45,2.43407289]
[1769212865597,1.19983963,127.52,127.46,2.43407289]
[1769212867688,1.19983963,127.52,127.47,2.43407289]
[1769212904920,1.2564218,127.51,127.47,2.43407289]
[1769212905120,1.2564218,127.5,127.42,2.4565673]
[1769212905422,1.2564218,127.5,127.43,2.4565673]
[1769212906160,1.2564218,127.5,127.44,2.4565673]
[1769212914151,104.50261389,127.51,127.45,2.4565673]
[1769212916168,1.26723386,127.5,127.46,2.4565673]
[1769212919746,3.67690356,127.5,127.46,2.4565673]
[1769212919951,1.27083711,127.49,127.46,2.4565673]
[1769212922649,1.27343235,127.5,127.46,2.4565673]
[1769212927743,1.27343235,127.5,127.47,2.54830403]
[1769212937264,1.28585201,127.54,127.5,2.54830403]
[1769212937559,1.28585201,127.54,127.5,4.95797373]
[1769212937966,1.28585201,127.54,127.52,2.54830403]
[1769212938268,1.28655464,127.56,127.53,4.95797373]
[1769212939156,1.2872492,127.57,127.54,2.54830403]
[1769212939341,1.2872492,127.57,127.55,2.54830403]
[1769212940151,105.84691476,127.59,127.55,2.54830403]
[1769212940152,1.28793579,127.58,127.55,2.54830403]
[1769212940471,0.2,127.59,127.55,2.54830403]
[1769212940643,0.2,127.59,127.56,2.54830403]
[1769212940963,0.2,127.59,127.57,2.49594216]
[1769212941196,0.2,127.59,127.57,2.4096697]
[1769212942465,0.2,127.59,127.52,3.13737793]
[1769212942754,0.2,127.59,127.53,7.84091133]
[1769212942755,1.54164726,127.59,127.53,7.84091133]
[1769212942934,1.54164726,127.59,127.56,2.54830403]
[1769212943141,0.2,127.59,127.57,2.54830403]
[1769212946238,1.54425469,127.59,127.56,4.95797373]
[1769212946442,1.54425469,127.59,127.56,2.54830403]
[1769212947162,0.2,127.59,127.56,2.54830403]
[1769212948656,1.34558021,127.58,127.54,4.95797373]
[1769212949263,1.34558021,127.58,127.55,2.54830403]
[1769212949461,1.34623158,127.57,127.54,2.54830403]
[1769212950069,3.75590128,127.57,127.54,2.54830403]
[1769212950646,1.34687546,127.56,127.53,2.54830403]
[1769212954372,1.34998562,127.58,127.54,4.76436606]
[1769212956471,1.35118025,127.57,127.54,4.76436606]
[1769212958187,103.23724506,127.58,127.56,2.35469636]
[1769212958359,103.23724506,127.58,127.56,4.76436606]
[1769212958756,103.23724506,127.58,127.57,4.76436606]
[1769212959255,100.67720266,127.58,127.57,4.76436606]
[1769212959488,95.55711786,127.58,127.57,4.76436606]
[1769212962300,0.2,127.59,127.57,4.76436606]
[1769212963500,2.53372199,127.59,127.57,2.4096697]
[1769212965701,2.53372199,127.59,127.56,3.61537353]
[1769212967100,2.53372199,127.59,127.55,1.19293286]
[1769212967272,2.53372199,127.59,127.56,2.4096697]
[1769212967576,2.53372199,127.59,127.57,2.4096697]
[1769212968581,0.2,127.59,127.58,2.4096697]
[1769212969501,0.2,127.59,127.57,3.59632687]
[1769212969708,0.2,127.59,127.58,2.4096697]
[1769212970391,0.2,127.59,127.57,3.59632687]
[1769212971905,0.2,127.59,127.57,1.18665717]
[1769212972202,0.2,127.59,127.57,3.59632687]
[1769212972909,0.2,127.59,127.57,3.59174202]
[1769212973907,19.58684986,127.64,127.57,3.59174202]
[1769212973908,0.1,127.68,127.61,2.35469636]
[1769212974084,328.86979604,127.75,127.67,4.75978121]
[1769212974085,2.20508485,127.74,127.67,4.75978121]
[1769212974411,2.40508485,127.73,127.68,2.40508485]
[1769212974704,2.40508485,127.73,127.67,4.75978121]
[1769212975000,2.40508485,127.73,127.68,2.40508485]
[1769212975179,2.40508485,127.75,127.69,2.40508485]
[1769212975378,2.40508485,127.77,127.72,2.40508485]
[1769212975578,0.0415684,127.78,127.73,2.40508485]
[1769212975797,2.33372199,127.77,127.73,2.40508485]
[1769212976790,2.33372199,127.77,127.72,2.40508485]
[1769212978004,2.33372199,127.77,127.73,2.40508485]
[1769212978410,1.83372199,127.77,127.73,2.40508485]
[1769212981702,1.83372199,127.77,127.74,2.40508485]
[1769212982800,1.83372199,127.77,127.75,2.40508485]
[1769212985493,1.83372199,127.77,127.74,2.40508485]
[1769212987417,1.83372199,127.77,127.72,2.35469636]
[1769212987625,1.83372199,127.77,127.74,2.40508485]
[1769212988894,1.83372199,127.77,127.75,2.40508485]
[1769212991513,2.27534086,127.78,127.75,4.67547228]
[1769212991712,2.27534086,127.78,127.76,2.40508485]
[1769212994923,0.0415684,127.78,127.76,4.67547228]
[1769212995112,0.0415684,127.78,127.77,4.67547228]
[1769212996021,2.27534086,127.78,127.77,2.40508485]
[1769212996209,2.27534086,127.78,127.75,2.27038743]
[1769212996210,2.27534086,127.78,127.75,4.67547228]
[1769212996706,2.27534086,127.78,127.75,2.27038743]
[1769212999115,2.27534086,127.78,127.74,4.67547228]
[1769213000120,2.27534086,127.78,127.75,2.40508485]
[1769213000919,2.44665325,127.78,127.73,2.40508485]
[1769213001318,2.44665325,127.78,127.72,2.27038743]
[1769213001626,2.40508485,127.77,127.72,2.27038743]
[1769213001820,2.40508485,127.77,127.72,4.67547228]
[1769213005820,2.40508485,127.77,127.72,2.40508485]
[1769213006123,95.2159247,127.77,127.73,2.27038743]
[1769213008023,92.81083985,127.77,127.73,2.27038743]
[1769213009341,92.81083985,127.77,127.72,4.67547228]
[1769213010337,92.81083985,127.77,127.73,2.27038743]
[1769213011026,92.81083985,127.77,127.72,2.40508485]
[1769213011235,92.81083985,127.77,127.72,2.27038743]
[1769213012123,100.63746257,127.77,127.72,2.27038743]
[1769213012532,100.63746257,127.77,127.72,4.67547228]
[1769213013242,100.63746257,127.77,127.72,4.45145163]
[1769213013647,100.63746257,127.77,127.73,2.04636678]
[1769213014142,103.04254742,127.77,127.73,2.04636678]
[1769213014340,92.81083985,127.77,127.74,2.04636678]
[1769213014537,92.81083985,127.77,127.74,4.45145163]
[1769213015336,92.81083985,127.77,127.74,2.40508485]
[1769213017051,100.63740749,127.77,127.74,2.40508485]
[1769213017224,100.63740749,127.77,127.73,4.45145163]
[1769213017424,100.63740749,127.77,127.73,2.04636678]
[1769213019327,92.81083985,127.77,127.73,2.04636678]
[1769213021956,2.40508485,127.76,127.68,2.04636678]
[1769213022249,2.40508485,127.76,127.64,39.17242143]
[1769213022250,2.40508485,127.75,127.7,2.04636678]
[1769213022569,7.82664688,127.77,127.64,39.17242143]
[1769213022570,2.40508485,127.73,127.67,4.45145163]
[1769213022732,2.40508485,127.72,127.67,4.45145163]
[1769213023046,2.40508485,127.73,127.68,4.45145163]
[1769213023443,7.8296273,127.72,127.68,4.45145163]
[1769213023635,7.8296273,127.72,127.68,2.04636678]
[1769213023836,10.23471215,127.72,127.68,2.04636678]
[1769213024664,10.23471215,127.72,127.67,4.45145163]
[1769213024838,2.40508485,127.71,127.67,2.04636678]
[1769213025843,2.40508485,127.7,127.66,2.04636678]
[1769213028658,2.40508485,127.69,127.66,2.04636678]
[1769213032544,2.40508485,127.7,127.66,2.04636678]
[1769213032744,7.83050875,127.71,127.66,2.04636678]
[1769213033061,10.2355936,127.71,127.66,2.04636678]
[1769213033262,7.83050875,127.71,127.66,2.04636678]
[1769213033447,7.83050875,127.71,127.67,2.04636678]
[1769213034148,10.2355936,127.71,127.67,2.04636678]
[1769213035069,92.81083985,127.75,127.69,2.04636678]
[1769213035270,2.40211904,127.75,127.7,2.04636678]
[1769213035461,2.40211904,127.74,127.7,2.04636678]
[1769213036267,10.23090027,127.74,127.7,2.04636678]
[1769213041578,2.40211904,127.73,127.69,2.04636678]
[1769213041761,2.40211904,127.72,127.69,2.04636678]
[1769213041962,95.21295889,127.72,127.68,2.04636678]
[1769213043171,10.23203249,127.72,127.63,7.83484383]
[1769213043377,2.40211904,127.7,127.64,1.54636678]
[1769213043684,2.40211904,127.7,127.65,2.40211904]
[1769213043892,2.40211904,127.69,127.64,2.40211904]
[1769213044063,2.40211904,127.7,127.65,2.40211904]
[1769213044867,2.40211904,127.69,127.65,2.40211904]
[1769213045367,2.40211904,127.69,127.65,1.79636678]
[1769213046083,2.40211904,127.69,127.66,1.79636678]
[1769213046286,2.40211904,127.7,127.66,1.79636678]
[1769213047371,2.40211904,127.69,127.66,1.79636678]
[1769213048075,2.40211904,127.68,127.66,1.79636678]
[1769213050177,2.40211904,127.67,127.65,1.79636678]
[1769213055790,2.40211904,127.68,127.65,1.79636678]
[1769213061197,92.81083985,127.7,127.66,1.79636678]
[1769213061372,95.21295889,127.7,127.66,1.79636678]
[1769213061573,2.40211904,127.69,127.66,1.79636678]
[1769213062783,103.04383219,127.7,127.66,1.79636678]
[1769213075632,2.40211904,127.69,127.66,1.79636678]
[1769213075833,2.40211904,127.68,127.65,1.79636678]
[1769213076491,2.40211904,127.68,127.64,1.79636678]
[1769213077516,2.40211904,127.67,127.64,1.79636678]
[1769213077691,7.83204702,127.69,127.64,1.79636678]
[1769213077895,92.81083985,127.7,127.67,1.79636678]
[1769213078099,92.81083985,127.7,127.68,1.79636678]
[1769213084925,92.81083985,127.7,127.67,1.79636678]
[1769213085141,103.04389548,127.7,127.66,1.79636678]
[1769213087650,2.40211904,127.69,127.66,1.79636678]
[1769213090045,103.04389548,127.7,127.66,1.79636678]
[1769213094550,92.81083985,127.7,127.66,1.79636678]
[1769213094729,92.81083985,127.7,127.68,1.79636678]
[1769213097956,95.21251587,127.7,127.67,1.79636678]
[1769213102175,92.81083985,127.7,127.67,1.79636678]
[1769213102470,92.81083985,127.7,127.69,1.79636678]
[1769213103156,92.81083985,127.7,127.68,1.79636678]
[1769213103666,92.81083985,127.7,127.66,2.40167602]
[1769213103876,92.81083985,127.7,127.67,1.79636678]
[1769213104841,92.81083985,127.7,127.66,1.79636678]
[1769213105060,92.81083985,127.7,127.66,4.1980428]
[1769213106447,92.81083985,127.7,127.67,1.79636678]
[1769213107464,100.64173249,127.7,127.66,4.1980428]
[1769213107762,103.04340851,127.7,127.66,1.79636678]
[1769213111872,2.40167602,127.68,127.64,1.79636678]
[1769213112564,2.40167602,127.67,127.64,1.79636678]
[1769213114669,2.40167602,127.68,127.64,1.79636678]
[1769213114861,103.04428364,127.69,127.65,1.79636678]
[1769213116069,95.21251587,127.69,127.65,1.79636678]
[1769213116269,92.81083985,127.69,127.66,1.79636678]
[1769213119783,95.21251587,127.72,127.66,4.1980428]
[1769213120084,103.04239126,127.72,127.67,1.79636678]
[1769213121686,103.04239126,127.72,127.67,4.1980428]
[1769213121975,103.04239126,127.72,127.68,1.79636678]
[1769213123875,2.40167602,127.71,127.68,1.79636678]
[1769213124372,2.40167602,127.69,127.64,4.1980428]
[1769213124568,2.40167602,127.68,127.64,1.79636678]
[1769213126681,2.40167602,127.67,127.64,1.79636678]
[1769213127282,2.40167602,127.67,127.63,1.79636678]
[1769213127580,2.40167602,127.66,127.63,1.79636678]
[1769213128281,2.40167602,127.66,127.6,2.60167602]
[1769213128282,2.40167602,127.65,127.62,1.79636678]
[1769213130383,10.23501037,127.66,127.62,1.79636678]
[1769213131586,2.40167602,127.65,127.62,1.79636678]
[1769213140089,2.40167602,127.64,127.62,1.79636678]
[1769213143174,2.40167602,127.65,127.62,1.79636678]
[1769213146503,2.40167602,127.64,127.62,1.79636678]
[1769213147302,2.40167602,127.65,127.62,1.79636678]
[1769213147904,2.40167602,127.64,127.61,1.79636678]
[1769213149003,2.40167602,127.62,127.6,1.99636678]
[1769213150677,2.40167602,127.61,127.59,1.79636678]
[1769213151195,2.40167602,127.61,127.58,1.79636678]
[1769213156104,2.40167602,127.6,127.58,1.79636678]
[1769213156978,2.40594885,127.6,127.58,1.79636678]
[1769213160305,2.40594885,127.59,127.55,1.79636678]
[1769213160506,112.39925474,127.63,127.55,1.79636678]
[1769213160507,2.40594885,127.58,127.55,1.79636678]
[1769213160685,112.39925474,127.63,127.55,1.79636678]
[1769213160686,2.40594885,127.57,127.55,1.79636678]
[1769213160890,2.40594885,127.56,127.54,1.79636678]
[1769213161685,2.40594885,127.55,127.53,0.2]
[1769213161885,2.40594885,127.54,127.53,0.2]
[1769213162387,2.40594885,127.55,127.53,0.2]
[1769213163936,2.40594885,127.54,127.53,0.2]
[1769213169408,2.40594885,127.54,127.52,1.79636678]
[1769213169611,2.40594885,127.53,127.52,1.79636678]
[1769213170013,2.40594885,127.53,127.51,1.99636678]
[1769213170393,2.40594885,127.52,127.51,0.2]
[1769213171508,2.40594885,127.52,127.5,0.38472928]
[1769213171814,2.40594885,127.51,127.5,0.38472928]
[1769213172417,2.40594885,127.51,127.49,0.2]
[1769213172621,2.40594885,127.5,127.49,0.2]
[1769213173592,2.40594885,127.5,127.49,1.99636678]
[1769213176722,2.40594885,127.51,127.49,1.99636678]
[1769213177895,2.40594885,127.51,127.49,0.2]
[1769213178096,7.84194523,127.52,127.49,0.2]
[1769213178097,2.40594885,127.5,127.49,0.2]
[1769213178621,2.40594885,127.5,127.48,1.79636678]
[1769213185326,112.41529886,127.53,127.48,1.79636678]
[1769213185327,92.81083985,127.53,127.48,1.79636678]
[1769213185625,95.2167887,127.53,127.49,1.79636678]
[1769213186419,103.05813463,127.53,127.49,1.79636678]
[1769213186626,2.40594885,127.52,127.49,1.79636678]
[1769213188526,2.40594885,127.55,127.5,2.40594885]
[1769213188723,2.40594885,127.55,127.51,1.79636678]
[1769213189231,2.40594885,127.55,127.52,1.79636678]
[1769213192834,7.83868761,127.58,127.53,1.79636678]
[1769213193144,7.83868761,127.58,127.54,1.79636678]
[1769213193145,103.05547631,127.58,127.54,1.79636678]
[1769213193307,94.7167887,127.58,127.54,1.79636678]
[1769213207822,102.55505323,127.58,127.54,1.79636678]
[1769213208958,94.7167887,127.58,127.54,1.79636678]
[1769213209943,102.55505889,127.58,127.54,1.79636678]
[1769213210741,2.40594885,127.56,127.53,1.79636678]
[1769213211140,2.40594885,127.57,127.53,1.79636678]
[1769213212151,2.40594885,127.57,127.54,1.79636678]
[1769213212528,94.7167887,127.58,127.54,1.79636678]
[1769213214261,102.55506015,127.58,127.54,1.79636678]
[1769213219049,2.40682464,127.57,127.54,1.79636678]
[1769213223543,2.40682464,127.55,127.52,1.79636678]
[1769213223743,2.40682464,127.54,127.5,1.79636678]
[1769213224050,2.40682464,127.53,127.5,1.79636678]
[1769213226765,2.40682464,127.52,127.5,1.79636678]
[1769213227656,2.40682464,127.53,127.5,1.79636678]
[1769213232641,2.40682464,127.52,127.49,1.79636678]
[1769213232847,2.40682464,127.51,127.49,1.79636678]
[1769213233153,2.40682464,127.51,127.48,1.79636678]
[1769213233661,2.40682464,127.5,127.48,1.79636678]
[1769213234138,2.40682464,127.51,127.48,1.79636678]
[1769213236455,2.40682464,127.5,127.48,1.79636678]
[1769213241168,2.40682464,127.51,127.48,1.79636678]
[1769213250876,2.40682464,127.5,127.48,1.79636678]
[1769213253580,2.40682464,127.51,127.48,1.79636678]
[1769213261388,2.40682464,127.52,127.48,1.79636678]
[1769213262788,2.40682464,127.51,127.48,1.79636678]
[1769213280915,2.40950935,127.51,127.48,1.79636678]
[1769213282710,92.31083985,127.53,127.49,1.79636678]
[1769213282914,92.31083985,127.53,127.5,1.79636678]
[1769213285218,19.59630305,127.58,127.51,1.79636678]
[1769213285404,92.31083985,127.57,127.54,1.79636678]
[1769213286719,94.7203492,127.57,127.54,1.79636678]
[1769213287217,94.7203492,127.57,127.48,19.60983426]
[1769213287218,2.40950935,127.55,127.53,1.79636678]
[1769213287411,2.40950935,127.56,127.53,1.79636678]
[1769213287606,2.40950935,127.55,127.53,1.79636678]
[1769213291424,2.40950935,127.54,127.52,1.79636678]
[1769213295305,2.40950935,127.55,127.52,1.79636678]
[1769213299710,94.7203492,127.56,127.52,1.79636678]
[1769213300805,92.31083985,127.56,127.54,1.79636678]
[1769213301024,92.31083985,127.56,127.54,0.16400398]
[1769213321924,102.55823489,127.59,127.55,0.98018538]
[1769213322527,2.40950935,127.57,127.53,0.98018538]
[1769213322733,2.40950935,127.56,127.53,0.98018538]
[1769213324252,2.40950935,127.57,127.53,0.98018538]
[1769213329756,7.83836023,127.58,127.53,0.98018538]
[1769213329936,2.40950935,127.56,127.53,0.98018538]
[1769213338566,2.40950935,127.57,127.53,0.98018538]
[1769213342575,2.40950935,127.57,127.51,2.40950935]
[1769213342576,2.40950935,127.55,127.52,0.98018538]
[1769213342972,2.40811025,127.55,127.52,0.98018538]
[1769213343759,2.40811025,127.55,127.5,0.98018538]
[1769213343961,2.40811025,127.54,127.5,0.98018538]
[1769213344475,7.83980616,127.56,127.5,0.98018538]
[1769213344665,2.40811025,127.54,127.5,0.98018538]
[1769213344860,2.40811025,127.55,127.51,0.98018538]
[1769213345066,2.40811025,127.56,127.51,0.98018538]
[1769213345266,2.40811025,127.56,127.52,0.98018538]
[1769213345573,92.31083985,127.57,127.54,0.98018538]
[1769213346983,94.7189501,127.57,127.54,0.98018538]
[1769213350989,2.40811025,127.55,127.52,0.98018538]
[1769213351163,2.40811025,127.55,127.5,2.40811025]
[1769213351164,2.40811025,127.55,127.51,0.98018538]
[1769213352492,2.40811025,127.54,127.51,0.98018538]
[1769213364684,2.40811025,127.53,127.51,0.98018538]
[1769213366389,2.40811025,127.54,127.51,0.98018538]
[1769213373306,2.40811025,127.53,127.5,0.98018538]
[1769213374709,2.40811025,127.52,127.5,0.98018538]
[1769213375005,2.40811025,127.52,127.47,2.40811025]
[1769213375204,2.40811025,127.51,127.48,0.98018538]
[1769213375610,2.40811025,127.5,127.46,0.98018538]
[1769213388409,2.40811025,127.5,127.47,0.98018538]
[1769213393929,2.40811025,127.51,127.47,0.98018538]
[1769213402933,2.40948283,127.51,127.47,0.98018538]
[1769213411320,2.40948283,127.51,127.46,3.38966821]
[1769213411525,2.40948283,127.5,127.46,0.98018538]
[1769213415347,2.40948283,127.5,127.47,0.98018538]
[1769213418947,92.31083985,127.52,127.47,0.98018538]
[1769213419140,2.40948283,127.54,127.5,0.98018538]
[1769213427957,2.40948283,127.54,127.5,3.38966821]
[1769213428262,2.40948283,127.54,127.51,0.98018538]
[1769213454611,7.84034976,127.55,127.51,0.98018538]
[1769213454812,2.40948283,127.54,127.51,0.98018538]
[1769213459121,2.40948283,127.52,127.49,0.98018538]
[1769213459912,2.40948283,127.51,127.49,0.98018538]
[1769213460616,2.40948283,127.5,127.45,2.60948283]
[1769213460813,0.03161967,127.51,127.45,10.45565458]
[1769213461111,2.4411025,127.51,127.46,2.40948283]
[1769213462517,2.4411025,127.51,127.47,0.49009269]
[1769213464017,2.40948283,127.5,127.47,0.49009269]
[1769213464906,2.44118541,127.48,127.45,0.69009269]
[1769213466622,2.41035629,127.47,127.45,0.69009269]
[1769213468214,2.44068801,127.47,127.45,0.2]
[1769213468604,2.44068801,127.46,127.45,0.2]
[1769213468809,2.41035629,127.46,127.44,0.69009269]
[1769213469410,2.44068801,127.47,127.44,0.69009269]
[1769213469722,2.44068801,127.47,127.44,0.19009269]
[1769213471521,2.41035629,127.46,127.44,0.19009269]
[1769213472715,2.74021307,127.45,127.42,0.48224986]
[1769213472912,2.74009773,127.45,127.42,0.48224986]
[1769213473828,2.41035629,127.44,127.42,0.48224986]
[1769213474333,2.73998371,127.44,127.41,0.68224986]
[1769213476036,2.73998371,127.44,127.42,0.48224986]
[1769213477248,2.41035629,127.44,127.42,0.48224986]
[1769213479616,2.73964945,127.45,127.42,0.48224986]
[1769213479841,2.41035629,127.45,127.42,0.48224986]
[1769213480417,2.73932657,127.46,127.42,0.48224986]
[1769213490847,92.31083985,127.47,127.44,0.48224986]
[1769213491144,92.31083985,127.47,127.45,0.48224986]
[1769213496036,92.18213215,127.47,127.45,0.48224986]
[1769213503736,94.91924175,127.47,127.44,0.47147703]
[1769213504851,2.73695112,127.45,127.42,0.47147703]
[1769213506559,0.32659483,127.45,127.42,0.47147703]
[1769213509340,2.73664494,127.46,127.42,0.47147703]
[1769213514866,2.41035629,127.45,127.42,0.47147703]
[1769213515242,2.73621139,127.45,127.42,0.47147703]
[1769213517050,2.41035629,127.44,127.42,0.47147703]
[1769213518168,2.73621139,127.45,127.42,0.47147703]
[1769213521969,2.73574214,127.44,127.42,0.47147703]
[1769213522362,2.41035629,127.44,127.42,0.47147703]
[1769213522663,2.73567815,127.45,127.42,0.47147703]
[1769213523759,0.3252586,127.44,127.41,0.66857733]
[1769213524173,2.73555237,127.45,127.42,0.46857733]
[1769213524758,2.73555237,127.46,127.42,0.46857733]
[1769213525057,2.73675698,127.46,127.42,0.46857733]
[1769213526756,94.91876621,127.47,127.43,0.46857733]
[1769213531982,92.18213215,127.47,127.44,0.4736569]
[1769213532674,92.18213215,127.47,127.45,0.4736569]
[1769213535686,92.5066316,127.47,127.45,0.4736569]
[1769213535862,92.5066316,127.47,127.44,0.4736569]
[1769213536783,92.18213215,127.47,127.44,0.4736569]
[1769213545368,92.18213215,127.47,127.45,0.4736569]
[1769213548199,92.18213215,127.47,127.45,0.42898272]
[1769213556292,92.55025437,127.47,127.45,0.42898272]
[1769213558309,92.55025437,127.47,127.44,2.87825628]
[1769213558511,92.55025437,127.47,127.44,0.46669538]
[1769213559695,0.36799845,127.46,127.43,2.4115609]
[1769213559904,0.36799845,127.46,127.43,0.46669538]
[1769213570124,0.36799845,127.46,127.42,2.87825628]
[1769213572422,0.36799845,127.46,127.43,0.46669538]
[1769213580215,0.36799845,127.46,127.42,0.46669538]
[1769213580557,0.36724241,127.43,127.41,0.2]
[1769213581239,0.36724241,127.43,127.41,0.66669538]
[1769213584038,0.36724241,127.43,127.41,0.2]
[1769213585035,0.36724241,127.43,127.41,0.6906545]
[1769213597952,2.77887766,127.44,127.41,0.6906545]
[1769213609285,0.36667434,127.44,127.41,0.6906545]
[1769213609462,2.77887766,127.44,127.41,0.6906545]
[1769213619583,0.36667434,127.44,127.41,0.2]
[1769213619787,2.77887766,127.44,127.42,0.47482551]
[1769213620786,2.77887766,127.44,127.41,0.67482551]
[1769213629178,92.54813106,127.46,127.42,0.47482551]
[1769213629490,92.18213215,127.46,127.43,0.47482551]
[1769213637804,92.54799775,127.46,127.43,0.47482551]
[1769213638103,94.96020107,127.46,127.43,0.47482551]
[1769213640512,92.18213215,127.46,127.43,0.47482551]
[1769213642211,92.54790555,127.46,127.43,0.47482551]
[1769213644120,92.18213215,127.46,127.43,0.47482551]
[1769213645420,94.95880356,127.46,127.43,0.47482551]
[1769213653835,92.18213215,127.46,127.44,0.48715862]
[1769213655531,92.18213215,127.46,127.45,0.48715862]
[1769213656705,0.36558156,127.48,127.45,0.48715862]
[1769213660019,2.41094177,127.49,127.45,0.48715862]
[1769213660223,0.36552023,127.5,127.47,0.48715862]
[1769213660832,0.36552023,127.5,127.46,2.89810039]
[1769213661135,0.36550838,127.49,127.46,0.48715862]
[1769213668842,2.77645015,127.49,127.46,0.48715862]
[1769213669843,0.36541838,127.48,127.45,0.48715862]
[1769213670148,2.77634947,127.49,127.45,0.48715862]
[1769213670321,102.43626776,127.5,127.46,0.48715862]
[1769213670526,2.77634947,127.49,127.46,0.48715862]
[1769213672750,0.3653764,127.48,127.45,0.47172297]
[1769213673054,2.77630797,127.49,127.45,0.47172297]
[1769213674550,0.3653662,127.49,127.45,0.47172297]
[1769213674727,2.77630797,127.49,127.45,0.47172297]
[1769213675449,0.36534616,127.48,127.45,0.47172297]
[1769213703860,2.77604386,127.46,127.43,0.45911372]
[1769213707064,2.77635146,127.46,127.43,0.45911372]
[1769213710169,0.36510209,127.46,127.43,0.45911372]
[1769213714474,2.77635146,127.46,127.42,0.45062069]
[1769213714773,0.36502269,127.45,127.42,0.45062069]
[1769213715180,2.77626593,127.46,127.42,0.45062069]
[1769213716980,0.36501656,127.46,127.43,0.45062069]
[1769213718691,92.18213215,127.47,127.45,0.45062069]
[1769213718983,92.18213215,127.47,127.46,0.45062069]
[1769213723494,92.18213215,127.51,127.47,0.45062069]
[1769213723697,0.36496997,127.52,127.49,0.45062069]
[1769213723996,0.36496444,127.53,127.5,0.45062069]
[1769213725909,0.36496444,127.53,127.5,2.86187006]
[1769213730301,0.36496444,127.53,127.49,2.86187006]
[1769213730509,0.36493259,127.52,127.49,0.45062069]
[1769213734600,2.77615705,127.51,127.47,0.47743369]
[1769213740308,0.36490768,127.51,127.47,0.47743369]
[1769213740628,0.36487963,127.52,127.47,0.47743369]
[1769213740927,2.776129,127.52,127.48,0.47743369]
[1769213743639,0.36487963,127.52,127.48,0.47743369]
[1769213743815,2.776129,127.52,127.48,0.47743369]
[1769213745220,0.36487963,127.52,127.48,0.47743369]
[1769213745837,0.36487963,127.52,127.48,2.88868306]
[1769213746044,0.36487963,127.52,127.49,0.47743369]
[1769213750137,2.776129,127.52,127.49,0.47743369]
[1769213756744,2.41124937,127.51,127.49,0.47743369]
[1769213757740,2.41124937,127.52,127.49,0.47743369]
[1769213760022,2.77604837,127.52,127.49,0.47743369]
[1769213760428,2.27604837,127.52,127.49,0.47743369]
[1769213768876,2.77396338,127.52,127.49,0.47743369]
[1769213782575,0.364799,127.52,127.49,0.47743369]
[1769213790159,2.77396338,127.52,127.49,0.47743369]
[1769213797788,0.36468421,127.51,127.49,0.47743369]
[1769213797993,0.36468421,127.51,127.46,2.40916438]
[1769213798180,2.77384859,127.51,127.46,2.40916438]
[1769213799990,2.40916438,127.51,127.47,0.4767992]
[1769213801194,102.91313466,127.52,127.47,0.4767992]
[1769213802393,0.47972153,127.51,127.47,0.4767992]
[1769213802693,0.47972153,127.51,127.48,0.4767992]
[1769213802893,2.88888591,127.51,127.48,0.4767992]
[1769213811702,0.47972153,127.5,127.48,0.4767992]
[1769213815409,2.40916438,127.51,127.48,0.4767992]
[1769213815604,2.88888591,127.51,127.48,0.4767992]
[1769213823527,0.4989478,127.49,127.46,0.4899932]
[1769213823699,0.4989478,127.48,127.45,0.4899932]
[1769213824105,2.90811218,127.48,127.45,0.4899932]
[1769213825831,0.4989478,127.47,127.45,0.4899932]
[1769213827514,2.8712965,127.48,127.45,0.4899932]
[1769213828933,2.87259139,127.48,127.45,0.4899932]
[1769213832643,0.46213212,127.48,127.45,0.4899932]
[1769213833737,92.18213215,127.5,127.48,0.46171934]
[1769213835253,92.64426427,127.5,127.48,0.46171934]
[1769213837218,92.18213215,127.5,127.48,0.46171934]
[1769213839624,92.64426427,127.5,127.48,0.46171934]
[1769213840034,92.18213215,127.5,127.48,0.46171934]
[1769213846853,92.64426427,127.5,127.48,0.46171934]
[1769213855264,92.18213215,127.5,127.48,0.46171934]
[1769213856766,92.66222245,127.5,127.48,0.46171934]
[1769213880266,0.4800903,127.52,127.48,0.46171934]
[1769213880677,0.4800903,127.52,127.49,0.46189802]